fUSD/lending_fUSD_20251220
["ID","MTS","AMOUNT","RATE_DAILY","PERIOD"]
[399283431,1766240405647,500.0,0.00010381,2]
[399283432,1766240405699,500.0,0.00010381,2]
[399283433,1766240405755,500.0,0.00010381,2]
[399283434,1766240405814,500.0,0.00010381,2]
[399283435,1766240405864,500.0,0.00010381,2]
[399283436,1766240405923,500.0,0.00010381,2]
[399283437,1766240405968,500.0,0.00010381,2]
[399283438,1766240406019,500.0,0.00010381,2]
[399283439,1766240406075,500.0,0.00010381,2]
[399283440,1766240406126,279.82972861,0.00010381,2]
[399283441,1766240406176,165.03793492,0.00010381,2]
[399283442,1766240406208,334.96206508,0.00010381,2]
[399283443,1766240406261,500.0,0.00010381,2]
[399283444,1766240406312,500.0,0.00010381,2]
[399283445,1766240411286,163.0755,0.00010282,2]
[399283446,1766240423881,282.604,0.00010282,2]
[399283447,1766240429375,500.0,0.00010381,2]
[399283448,1766240429695,500.0,0.00010381,2]
[399283449,1766240430026,500.0,0.00010381,2]
[399283450,1766240430341,500.0,0.00010381,2]
[399283451,1766240430679,500.0,0.00010381,2]
[399283452,1766240430988,500.0,0.00010381,2]
[399283453,1766240431314,500.0,0.00010381,2]
[399283454,1766240431656,500.0,0.00010381,2]
[399283455,1766240431998,500.0,0.00010381,2]
[399283456,1766240437488,500.0,0.00010381,2]
[399283457,1766240443052,500.0,0.00010381,2]
[399283458,1766240462167,150.0,0.00010381,2]
[399283459,1766240467294,230.64141367,0.00010282,2]
[399283460,1766240485116,2338.72702125,0.00010282,2]
[399283461,1766240485142,161.27297875,0.00010282,2]
[399283462,1766240493306,3282.945,0.00010175,2]
[399283463,1766240493629,180.277,0.00010175,2]
[399283464,1766240525339,200.0,0.00010382,2]
[399283465,1766240531461,500.0,0.00010382,2]
[399283466,1766240532203,500.0,0.00010382,2]
[399283467,1766240532821,500.0,0.00010382,2]
[399283468,1766240533464,500.0,0.00010382,2]
[399283469,1766240534064,500.0,0.00010382,2]
[399283470,1766240534940,500.0,0.00010382,2]
[399283471,1766240535330,500.0,0.00010382,2]
[399283472,1766240536417,500.0,0.00010382,2]
[399283473,1766240537511,500.0,0.00010382,2]
[399283474,1766240550053,151.0,0.00010382,2]
[399283475,1766240550698,151.0,0.00010382,2]
[399283476,1766240551359,151.0,0.00010382,2]
[399283477,1766240551973,151.0,0.00010382,2]
[399283478,1766240552585,151.0,0.00010382,2]
[399283479,1766240553199,151.0,0.00010382,2]
[399283480,1766240554319,151.0,0.00010382,2]
[399283481,1766240554964,151.0,0.00010382,2]
[399283482,1766240555626,151.0,0.00010382,2]
[399283483,1766240556455,151.0,0.00010382,2]
[399283484,1766240557063,151.0,0.00010382,2]
[399283485,1766240562462,-1852.9794363,0.00010382,2]
[399283486,1766240562498,-10000.01,0.00010382,2]
[399283487,1766240562658,-10000.01,0.00010382,2]
[399283488,1766240562859,-10000.01,0.00010382,2]
[399283489,1766240563054,-10000.01,0.00010382,2]
[399283491,1766240584629,1200.0,0.00010381,2]
[399283504,1766240642361,150.0,0.00010381,2]
[399283505,1766240646509,228.87884224,0.00010381,2]
[399283506,1766240661552,500.0,0.00010381,2]
[399283507,1766240661598,500.0,0.00010381,2]
[399283508,1766240661640,500.0,0.00010381,2]
[399283509,1766240661682,500.0,0.00010381,2]
[399283510,1766240661731,500.0,0.00010381,2]
[399283511,1766240661772,500.0,0.00010381,2]
[399283512,1766240661817,500.0,0.00010381,2]
[399283513,1766240661860,500.0,0.00010381,2]
[399283514,1766240661902,500.0,0.00010381,2]
[399283515,1766240661946,500.0,0.00010381,2]
[399283516,1766240661990,500.0,0.00010381,2]
[399283517,1766240662035,500.0,0.00010381,2]
[399283518,1766240662082,500.0,0.00010381,2]
[399283519,1766240662126,500.0,0.00010381,2]
[399283520,1766240662174,500.0,0.00010381,2]
[399283521,1766240662222,500.0,0.00010381,2]
[399283522,1766240662272,421.13115776,0.00010381,2]
[399283523,1766240662302,78.86884224,0.00010381,2]
[399283524,1766240662347,500.0,0.00010381,2]
[399283525,1766240662393,500.0,0.00010381,2]
[399283526,1766240662437,500.0,0.00010381,2]
[399283527,1766240662487,500.0,0.00010381,2]
[399283528,1766240662529,500.0,0.00010381,2]
[399283529,1766240662576,500.0,0.00010381,2]
[399283530,1766240662617,500.0,0.00010381,2]
[399283531,1766240662665,500.0,0.00010381,2]
[399283532,1766240662708,500.0,0.00010381,2]
[399283533,1766240662756,500.0,0.00010381,2]
[399283534,1766240662803,500.0,0.00010381,2]
[399283535,1766240662850,500.0,0.00010381,2]
[399283536,1766240662892,500.0,0.00010381,2]
[399283537,1766240662934,500.0,0.00010381,2]
[399283538,1766240662975,500.0,0.00010381,2]
[399283539,1766240663017,500.0,0.00010381,2]
[399283540,1766240663064,500.0,0.00010381,2]
[399283541,1766240663110,500.0,0.00010381,2]
[399283542,1766240663160,500.0,0.00010381,2]
[399283543,1766240663207,421.14115776,0.00010381,2]
[399283544,1766240663483,78.85884224,0.00010381,2]
[399283545,1766240663535,500.0,0.00010381,2]
[399283546,1766240663585,500.0,0.00010381,2]
[399283547,1766240663632,500.0,0.00010381,2]
[399283548,1766240663678,500.0,0.00010381,2]
[399283549,1766240663724,500.0,0.00010381,2]
[399283550,1766240663769,500.0,0.00010381,2]
[399283551,1766240663811,500.0,0.00010381,2]
[399283552,1766240663862,500.0,0.00010381,2]
[399283553,1766240663910,500.0,0.00010381,2]
[399283554,1766240663958,500.0,0.00010381,2]
[399283555,1766240663999,500.0,0.00010381,2]
[399283556,1766240664043,500.0,0.00010381,2]
[399283557,1766240664089,500.0,0.00010381,2]
[399283558,1766240664149,500.0,0.00010381,2]
[399283559,1766240664193,500.0,0.00010381,2]
[399283560,1766240664236,500.0,0.00010381,2]
[399283561,1766240664280,500.0,0.00010381,2]
[399283562,1766240664329,500.0,0.00010381,2]
[399283563,1766240681388,532.34515262,0.00010381,2]
[399283564,1766240681433,532.34515262,0.00010381,2]
[399283565,1766240681478,532.34515262,0.00010381,2]
[399283566,1766240681535,532.34515262,0.00010381,2]
[399283567,1766240681584,532.34515262,0.00010381,2]
[399283568,1766240681628,532.34515262,0.00010381,2]
[399283569,1766240681673,532.34515262,0.00010381,2]
[399283570,1766240681717,532.34515262,0.00010381,2]
[399283571,1766240681766,532.34515262,0.00010381,2]
[399283572,1766240681810,532.34515262,0.00010381,2]
[399283573,1766240681854,532.34515262,0.00010381,2]
[399283574,1766240681898,532.34515262,0.00010381,2]
[399283575,1766240681942,532.34515262,0.00010381,2]
[399283576,1766240681993,532.34515262,0.00010381,2]
[399283577,1766240682041,532.34515262,0.00010381,2]
[399283578,1766240682086,532.34515262,0.00010381,2]
[399283579,1766240682133,532.34515262,0.00010381,2]
[399283580,1766240682179,532.34515262,0.00010381,2]
[399283581,1766240682235,417.79725284,0.00010381,2]
[399283582,1766240682268,114.54789978,0.00010381,2]
[399283583,1766240682317,532.34515262,0.00010381,2]
[399283584,1766240682371,532.34515262,0.00010381,2]
[399283585,1766240682418,532.34515262,0.00010381,2]
[399283586,1766240682466,532.34515262,0.00010381,2]
[399283587,1766240682515,532.34515262,0.00010381,2]
[399283588,1766240682559,532.34515262,0.00010381,2]
[399283589,1766240682608,532.34515262,0.00010381,2]
[399283590,1766240682652,532.34515262,0.00010381,2]
[399283591,1766240682697,532.34515262,0.00010381,2]
[399283592,1766240683089,532.34515262,0.00010381,2]
[399283593,1766240683141,532.34515262,0.00010381,2]
[399283594,1766240683192,532.34515262,0.00010381,2]
[399283595,1766240683240,532.34515262,0.00010381,2]
[399283596,1766240683286,532.34515262,0.00010381,2]
[399283597,1766240683334,532.34515262,0.00010381,2]
[399283598,1766240683381,532.34515262,0.00010381,2]
[399283599,1766240683433,532.34515262,0.00010381,2]
[399283600,1766240683486,532.34515262,0.00010381,2]
[399283601,1766240683533,303.24935306,0.00010381,2]
[399283602,1766240683563,229.09579956,0.00010381,2]
[399283603,1766240683621,532.34515262,0.00010381,2]
[399283604,1766240683666,532.34515262,0.00010381,2]
[399283605,1766240683712,532.34515262,0.00010381,2]
[399283606,1766240683758,532.34515262,0.00010381,2]
[399283607,1766240683803,532.34515262,0.00010381,2]
[399283608,1766240683848,532.34515262,0.00010381,2]
[399283609,1766240683897,532.34515262,0.00010381,2]
[399283610,1766240683942,532.34515262,0.00010381,2]
[399283611,1766240683986,532.34515262,0.00010381,2]
[399283612,1766240684032,532.34515262,0.00010381,2]
[399283613,1766240684078,532.34515262,0.00010381,2]
[399283614,1766240684144,532.34515262,0.00010381,2]
[399283615,1766240684196,532.34515262,0.00010381,2]
[399283616,1766240684241,532.34515262,0.00010381,2]
[399283617,1766240684294,532.34515262,0.00010381,2]
[399283628,1766240696558,500.0,0.00010381,2]
[399283630,1766240719916,-299.0,0.00010381,2]
[399283631,1766240719951,-204.67087645,0.00010381,2]
[399283632,1766240719993,-500.0,0.00010381,2]
[399283633,1766240720032,-500.0,0.00010381,2]
[399283634,1766240720070,-500.0,0.00010381,2]
[399283635,1766240720108,-500.0,0.00010381,2]
[399283636,1766240720145,-500.0,0.00010381,2]
[399283637,1766240720182,-500.0,0.00010381,2]
[399283638,1766240720221,-500.0,0.00010381,2]
[399283639,1766240720260,-500.0,0.00010381,2]
[399283640,1766240720299,-492.6682471,0.00010381,2]
[399283641,1766240720448,-7.3317529,0.00010381,2]
[399283642,1766240720487,-500.0,0.00010381,2]
[399283643,1766240720528,-500.0,0.00010381,2]
[399283644,1766240720570,-500.0,0.00010381,2]
[399283645,1766240720611,-500.0,0.00010381,2]
[399283646,1766240720651,-500.0,0.00010381,2]
[399283647,1766240720692,-500.0,0.00010381,2]
[399283648,1766240720732,-500.0,0.00010381,2]
[399283649,1766240720772,-500.0,0.00010381,2]
[399283650,1766240720809,-500.0,0.00010381,2]
[399283651,1766240720845,-485.3464942,0.00010381,2]
[399283652,1766240729619,-14.6535058,0.00010381,2]
[399283653,1766240729657,-500.0,0.00010381,2]
[399283654,1766240729698,-500.0,0.00010381,2]
[399283655,1766240729735,-500.0,0.00010381,2]
[399283656,1766240729773,-500.0,0.00010381,2]
[399283657,1766240729810,-500.0,0.00010381,2]
[399283658,1766240729848,-500.0,0.00010381,2]
[399283659,1766240729885,-500.0,0.00010381,2]
[399283660,1766240729922,-500.0,0.00010381,2]
[399283661,1766240729960,-500.0,0.00010381,2]
[399283662,1766240729998,-470.7029884,0.00010381,2]
[399283663,1766240754154,-29.2970116,0.00010381,2]
[399283664,1766240754195,-500.0,0.00010381,2]
[399283665,1766240754237,-500.0,0.00010381,2]
[399283666,1766240754278,-500.0,0.00010381,2]
[399283667,1766240754331,-500.0,0.00010381,2]
[399283668,1766240754444,628.25072738,0.00010381,2]
[399283669,1766240754596,628.25072738,0.00010381,2]
[399283670,1766240754889,628.25072738,0.00010381,2]
[399283671,1766240755258,628.25072738,0.00010381,2]
[399283672,1766240755577,628.25072738,0.00010381,2]
[399283673,1766240755914,628.25072738,0.00010381,2]
[399283674,1766240756249,628.25072738,0.00010381,2]
[399283675,1766240756599,628.25072738,0.00010381,2]
[399283676,1766240756913,628.25072738,0.00010381,2]
[399283677,1766240756962,287.15943038,0.00010381,2]
[399283692,1766240826022,1604.35,6.956e-05,2]
[399283693,1766240826214,1604.35,7.322e-05,2]
[399283694,1766240826428,1604.35,7.688e-05,2]
[399283695,1766240826656,1604.35,8.054e-05,2]
[399283696,1766240826883,1604.35,8.42e-05,2]
[399283697,1766240827081,1604.35,8.786e-05,2]
[399283698,1766240827290,373.91,9.152e-05,2]
[399283699,1766240827322,1230.44,9.152e-05,2]
[399283700,1766240827483,1604.35,9.518e-05,2]
[399283701,1766240827674,1604.35,9.884e-05,2]
[399283703,1766240831211,205.0,9.8e-05,2]
[399283774,1766241031581,-726.89716718,0.00010188,2]
[399283775,1766241031642,-598.44007945,0.00010188,2]
[399283778,1766241037631,-9262.56509037,0.00010188,2]
[399283779,1766241037640,-3539.10319639,0.0001024,2]
[399283780,1766241037649,-185.37573515,0.0001024,2]
[399283781,1766241037661,-48.62426485,0.0001024,2]
[399283782,1766241037670,-1604.35,0.0001025,2]
[399283783,1766241037680,-250.0,0.00010266,2]
[399283784,1766241037690,-300.0,0.0001028,2]
[399283785,1766241037699,-1200.0,0.0001028,2]
[399283786,1766241037708,-150.0,0.0001028,2]
[399283787,1766241037718,-500.0,0.0001028,2]
[399283788,1766241037727,-500.0,0.0001028,2]
[399283789,1766241037736,-500.0,0.0001028,2]
[399283790,1766241037746,-500.0,0.0001028,2]
[399283791,1766241037756,-500.0,0.0001028,2]
[399283792,1766241037765,-127.09039779,0.0001028,2]
[399283795,1766241039629,-372.90960221,0.0001028,2]
[399283796,1766241039639,-500.0,0.0001028,2]
[399283797,1766241039649,-500.0,0.0001028,2]
[399283798,1766241039658,-117.08625932,0.0001028,2]
[399283948,1766241042651,-382.91374068,0.0001028,2]
[399283949,1766241042660,-500.0,0.0001028,2]
[399283950,1766241042671,-500.0,0.0001028,2]
[399283951,1766241042680,-500.0,0.0001028,2]
[399283952,1766241042690,-500.0,0.0001028,2]
[399283953,1766241042699,-500.0,0.0001028,2]
[399283954,1766241042708,-500.0,0.0001028,2]
[399283955,1766241042717,-500.0,0.0001028,2]
[399283956,1766241042726,-500.0,0.0001028,2]
[399283957,1766241042735,-500.0,0.0001028,2]
[399283958,1766241042745,-500.0,0.0001028,2]
[399283959,1766241042754,-500.0,0.0001028,2]
[399283960,1766241042763,-500.0,0.0001028,2]
[399283961,1766241042773,-265.98370027,0.0001028,2]
[399283962,1766241042782,-500.0,0.0001028,2]
[399283963,1766241042791,-500.0,0.0001028,2]
[399283964,1766241042800,-500.0,0.0001028,2]
[399283965,1766241042810,-500.0,0.0001028,2]
[399283966,1766241042819,-500.0,0.0001028,2]
[399283967,1766241042833,-500.0,0.0001028,2]
[399283968,1766241042846,-500.0,0.0001028,2]
[399283969,1766241042856,-500.0,0.0001028,2]
[399283970,1766241042866,-500.0,0.0001028,2]
[399283971,1766241042877,-160.21518957,0.00010281,2]
[399283972,1766241042887,-611.16282994,0.00010281,2]
[399283973,1766241042896,-433.37706188,0.00010282,2]
[399283974,1766241042906,-2756.9178,0.00010282,2]
[399283975,1766241042917,-2650.5986,0.00010282,2]
[399283976,1766241042927,-500.0,0.00010282,2]
[399283977,1766241042937,-4206.0464752,0.00010282,2]
[399283979,1766241042951,-661.03999474,0.00010282,2]
[399283985,1766241045941,-8637.42458002,0.00010282,2]
[399284018,1766241104922,202.62,0.00014,4]
[399284167,1766241644985,-232.0,0.0001004,2]
[399284168,1766241645022,-156.79,0.00010069,2]
[399284169,1766241645055,-153.59692508,0.00010077,2]
[399284170,1766241645088,-153.59692508,0.00010077,2]
[399284171,1766241645125,-180.277,0.00010077,2]
[399284172,1766241645160,-2626.356,0.00010077,2]
[399284173,1766241645192,-441.2294,0.0001014,2]
[399284174,1766241645224,-524.76448062,0.00010158,2]
[399284175,1766241645262,-286.0,0.0001018,2]
[399284176,1766241645294,-150.0,0.00010181,2]
[399284177,1766241658837,-300.0,0.00010181,2]
[399284178,1766241682799,-1280.80528624,0.00010182,2]
[399284179,1766241692301,-10000.01,0.00010182,2]
[399284180,1766241692574,-10000.01,0.00010182,2]
[399284181,1766241692778,-4728.29181376,0.00010182,2]
[399284182,1766241692812,-153.59692508,0.00010182,2]
[399284183,1766241692867,-236.23252232,0.00010182,2]
[399284184,1766241692925,-763.76747768,0.00010182,2]
[399284185,1766241692959,-500.0,0.00010274,2]
[399284186,1766241692993,-500.0,0.00010274,2]
[399284187,1766241693278,-500.0,0.00010274,2]
[399284188,1766241693320,-500.0,0.00010274,2]
[399284189,1766241693360,-500.0,0.00010274,2]
[399284190,1766241693397,-500.0,0.00010274,2]
[399284191,1766241693436,-500.0,0.00010274,2]
[399284192,1766241693474,-500.0,0.00010274,2]
[399284193,1766241693751,-472.47504464,0.00010077,2]
[399284201,1766241724828,-1628.60995536,0.00010077,2]
[399284202,1766241724862,-180.277,0.00010077,2]
[399284203,1766241724895,-349.84298708,0.00010174,2]
[399284204,1766241724929,-349.84298708,0.00010225,2]
[399284205,1766241724963,-150.0,0.00010273,2]
[399284206,1766241725002,-500.0,0.00010274,2]
[399284207,1766241725041,-500.0,0.00010274,2]
[399284208,1766241725078,-500.0,0.00010274,2]
[399284209,1766241725117,-500.0,0.00010274,2]
[399284210,1766241725154,-182.86414096,0.00010274,2]
[399284211,1766241725394,-317.13585904,0.00010274,2]
[399284212,1766241744678,-10000.01,0.00010182,2]
[399284223,1766241950904,304.81881462,0.000225,120]
[399284224,1766241960610,-533.62664058,0.00010081,2]
[399284225,1766241960645,-300.0,0.00010175,2]
[399284226,1766241960679,-350.0,0.00010175,2]
[399284227,1766241960715,-150.0,0.00010175,2]
[399284231,1766242016179,500.0,0.00010175,2]
[399284232,1766242016220,500.0,0.00010175,2]
[399284233,1766242016259,303.08407655,0.00010175,2]
[399284234,1766242016302,500.0,0.00010175,2]
[399284235,1766242016343,500.0,0.00010175,2]
[399284236,1766242016383,500.0,0.00010175,2]
[399284237,1766242016421,217.72413288,0.00010175,2]
[399284238,1766242016460,228.33296774,0.00010175,2]
[399284239,1766242026125,349.84298708,0.00010081,2]
[399284240,1766242033348,192.03699641,0.00010175,2]
[399284244,1766242067301,355.75109372,0.00010081,2]
[399284247,1766242074659,2500.0,0.00010076,2]
[399284248,1766242081662,300.0,0.00010175,2]
[399284249,1766242082170,150.0,0.00010175,2]
[399284252,1766242084587,235.98446446,0.00010175,2]
[399284253,1766242084614,964.01553554,0.00010175,2]
[399284264,1766242096366,500.0,0.00010175,2]
[399284265,1766242096411,500.0,0.00010175,2]
[399284266,1766242096458,500.0,0.00010175,2]
[399284267,1766242096508,500.0,0.00010175,2]
[399284268,1766242096600,500.0,0.00010175,2]
[399284269,1766242096651,500.0,0.00010175,2]
[399284270,1766242096696,500.0,0.00010175,2]
[399284271,1766242096742,500.0,0.00010175,2]
[399284272,1766242096801,500.0,0.00010175,2]
[399284273,1766242096849,500.0,0.00010175,2]
[399284274,1766242096898,500.0,0.00010175,2]
[399284275,1766242096943,500.0,0.00010175,2]
[399284276,1766242096987,500.0,0.00010175,2]
[399284277,1766242097036,500.0,0.00010175,2]
[399284278,1766242097080,500.0,0.00010175,2]
[399284279,1766242097129,500.0,0.00010175,2]
[399284280,1766242097174,500.0,0.00010175,2]
[399284281,1766242097234,500.0,0.00010175,2]
[399284282,1766242097285,35.99446446,0.00010175,2]
[399284283,1766242097316,464.00553554,0.00010175,2]
[399284284,1766242097363,500.0,0.00010175,2]
[399284285,1766242097420,500.0,0.00010175,2]
[399284286,1766242097468,500.0,0.00010175,2]
[399284287,1766242097516,500.0,0.00010175,2]
[399284288,1766242097567,500.0,0.00010175,2]
[399284289,1766242097613,500.0,0.00010175,2]
[399284290,1766242097660,500.0,0.00010175,2]
[399284291,1766242097707,500.0,0.00010175,2]
[399284292,1766242097766,500.0,0.00010175,2]
[399284293,1766242097816,500.0,0.00010175,2]
[399284294,1766242097860,500.0,0.00010175,2]
[399284295,1766242097906,500.0,0.00010175,2]
[399284296,1766242097954,399.69742426,0.00010175,2]
[399284297,1766242098000,500.0,0.00010175,2]
[399284298,1766242098042,500.0,0.00010175,2]
[399284299,1766242098097,500.0,0.00010175,2]
[399284300,1766242098145,500.0,0.00010175,2]
[399284301,1766242098190,500.0,0.00010175,2]
[399284303,1766242112097,500.0,0.00010175,2]
[399284304,1766242112141,136.3070402,0.00010175,2]
[399284305,1766242112170,363.6929598,0.00010175,2]
[399284306,1766242112214,500.0,0.00010175,2]
[399284307,1766242112258,500.0,0.00010175,2]
[399284308,1766242112301,500.0,0.00010175,2]
[399284309,1766242112345,500.0,0.00010175,2]
[399284310,1766242112389,500.0,0.00010175,2]
[399284311,1766242112432,500.0,0.00010175,2]
[399284312,1766242112616,500.0,0.00010175,2]
[399284313,1766242113124,500.0,0.00010175,2]
[399284314,1766242113170,500.0,0.00010175,2]
[399284315,1766242113217,500.0,0.00010175,2]
[399284316,1766242113263,500.0,0.00010175,2]
[399284317,1766242113308,500.0,0.00010175,2]
[399284318,1766242113354,500.0,0.00010175,2]
[399284319,1766242113401,500.0,0.00010175,2]
[399284320,1766242113446,500.0,0.00010175,2]
[399284321,1766242113492,500.0,0.00010175,2]
[399284322,1766242113538,500.0,0.00010175,2]
[399284323,1766242113583,500.0,0.00010175,2]
[399284324,1766242113629,500.0,0.00010175,2]
[399284325,1766242113677,136.3170402,0.00010175,2]
[399284326,1766242113709,363.6829598,0.00010175,2]
[399284327,1766242113757,500.0,0.00010175,2]
[399284328,1766242113805,500.0,0.00010175,2]
[399284329,1766242113879,500.0,0.00010175,2]
[399284330,1766242134157,427.81398096,0.00010175,2]
[399284331,1766242140251,500.0,0.00010175,2]
[399284332,1766242140296,500.0,0.00010175,2]
[399284333,1766242140351,469.83043463,0.00010175,2]
[399284336,1766242164078,500.0,0.00010175,2]
[399284341,1766242168267,500.0,0.00010175,2]
[399284343,1766242168307,500.0,0.00010175,2]
[399284344,1766242168346,500.0,0.00010175,2]
[399284345,1766242168384,500.0,0.00010175,2]
[399284346,1766242168423,500.0,0.00010175,2]
[399284347,1766242168461,574.7715435,0.00010175,2]
[399284348,1766242168504,500.0,0.00010175,2]
[399284349,1766242168548,500.0,0.00010175,2]
[399284350,1766242168588,500.0,0.00010175,2]
[399284351,1766242168640,500.0,0.00010175,2]
[399284352,1766242168679,500.0,0.00010175,2]
[399284354,1766242168715,500.0,0.00010175,2]
[399284355,1766242168753,500.0,0.00010175,2]
[399284356,1766242168791,500.0,0.00010175,2]
[399284357,1766242168836,500.0,0.00010175,2]
[399284358,1766242168879,27.59404091,0.00010175,2]
[399284359,1766242168903,472.40595909,0.00010175,2]
[399284360,1766242168942,500.0,0.00010175,2]
[399284366,1766242196295,500.0,0.00010175,2]
[399284367,1766242201876,850.0,0.00010175,2]
[399284369,1766242211542,2291.7521,0.00010076,2]
[399284370,1766242212593,237.16739582,0.00010082,2]
[399284371,1766242215946,2747.43125152,0.000101,2]
[399284372,1766242217684,2401.25329357,0.00010076,2]
[399284373,1766242217710,10000.01,0.00010076,2]
[399284374,1766242217736,10000.01,0.00010076,2]
[399284375,1766242217762,10000.01,0.00010076,2]
[399284376,1766242217789,10000.01,0.00010076,2]
[399284377,1766242217815,2807.00460643,0.00010076,2]
[399284380,1766242231695,-500.0,0.00010175,2]
[399284381,1766242231706,-59334.42326366,0.00010176,2]
[399284382,1766242231864,-65635.5969617,0.00010176,2]
[399284383,1766242231876,-8627.32999424,0.00010176,2]
[399284384,1766242231887,-413.26501402,0.00010176,2]
[399284385,1766242237896,-23289.57036021,0.00010176,2]
[399284386,1766242237907,-421.79356337,0.00010176,2]
[399284387,1766242240068,-458.91170172,0.00010176,2]
[399284388,1766242240081,-1579.56364063,0.00010176,2]
[399284389,1766242240127,-3336.76814137,0.00010176,2]
[399284390,1766242240138,-785.864716,0.00010176,2]
[399284391,1766242240153,-357.67640451,0.00010176,2]
[399284409,1766242242891,-3086.11320278,0.00010176,2]
[399284410,1766242242953,-29270.61835995,0.00010176,2]
[399284421,1766242245813,-12782.24186569,0.00010176,2]
[399284422,1766242245874,-790620.26281015,0.00010176,2]
[399284423,1766242245884,-234.0,0.00010176,2]
[399284424,1766242245893,-21842.5218,0.00010182,2]
[399284425,1766242245903,-1000.0,0.00010182,2]
[399284426,1766242245913,-442.73435197,0.00010273,2]
[399284427,1766242245924,-1004.07540252,0.00010273,2]
[399284428,1766242245934,-500.0,0.00010276,2]
[399284429,1766242245943,-206.08973017,0.00010276,2]
[399284430,1766242245953,-655.16,0.00010276,2]
[399284431,1766242245964,-200.0,0.00010276,2]
[399284432,1766242245975,-500.0,0.00010276,2]
[399284433,1766242245985,-500.0,0.00010276,2]
[399284434,1766242245994,-500.0,0.00010276,2]
[399284435,1766242246004,-500.0,0.00010276,2]
[399284436,1766242246014,-500.0,0.00010276,2]
[399284437,1766242246025,-500.0,0.00010276,2]
[399284438,1766242246035,-500.0,0.00010276,2]
[399284439,1766242246044,-500.0,0.00010276,2]
[399284440,1766242246053,-500.0,0.00010276,2]
[399284441,1766242246062,-500.0,0.00010276,2]
[399284442,1766242246071,-500.0,0.00010276,2]
[399284443,1766242246082,-200.0,0.00010276,2]
[399284444,1766242246091,-500.0,0.00010276,2]
[399284445,1766242246100,-500.0,0.00010276,2]
[399284446,1766242246110,-500.0,0.00010276,2]
[399284447,1766242246119,-151.0,0.00010276,2]
[399284448,1766242246129,-500.0,0.00010276,2]
[399284450,1766242246138,-500.0,0.00010276,2]
[399284451,1766242246148,-500.0,0.00010276,2]
[399284452,1766242246157,-500.0,0.00010276,2]
[399284453,1766242246167,-500.0,0.00010276,2]
[399284454,1766242246177,-500.0,0.00010276,2]
[399284455,1766242246187,-500.0,0.00010276,2]
[399284456,1766242246197,-478.07,0.00010276,2]
[399284457,1766242246206,-200.0,0.00010276,2]
[399284458,1766242246215,-151.0,0.00010276,2]
[399284459,1766242246224,-500.0,0.00010276,2]
[399284460,1766242246236,-151.0,0.00010276,2]